{"text_format":"1","workbook":"xlsx","n_sheets":4,"sheets":["Титульный","Кроссворд","Проверка","Итоговый"],"not_rendered":{"charts":0,"images":3,"macros":1,"external_links":0,"defined_names":0,"comments":1,"pivot_tables":0},"unopened":[],"bounds":{"document_bytes":16777216,"sheet_cells":100000,"rows_first":2000,"rows_last":500,"rows_between":2000,"halvings":0,"cell_chars":16384,"cell_head_chars":4096},"cells_cut":0,"cells_raw":0,"read":"whole","date_system":"1900"}

{"sheet":"Титульный","index":0,"n_rows":14,"n_cols":2,"rows_kept":14,"cut":false,"hidden":false,"merged":[[9,1,11,5],[9,7,11,11],[13,1,15,5],[13,7,15,11],[34,1,34,7]]}
[]
[]
[]
[]
[]
[]
[]
[]
[]
[null,"Фамилия, Имя"]
[]
[]
[]
[null,"Класс"]

{"sheet":"Кроссворд","index":1,"n_rows":0,"n_cols":0,"rows_kept":0,"cut":false,"hidden":false,"merged":[]}

{"sheet":"Проверка","index":2,"n_rows":17,"n_cols":5,"rows_kept":17,"cut":false,"hidden":true,"merged":[]}
[]
[]
[null,"№","Ответы проверяемого","Правильные ответы","Баллы"]
[null,1,{"$f":"CONCATENATE(Кроссворд!AA2,Кроссворд!AA3,Кроссворд!AA4,Кроссворд!AA5)","v":""},"Порт",1]
[null,2,{"$f":"CONCATENATE(Кроссворд!X3,Кроссворд!X4,Кроссворд!X5,Кроссворд!X6,Кроссворд!X7,Кроссворд!X8,Кроссворд!X9,Кроссворд!X10,Кроссворд!X11,Кроссворд!X12,Кроссворд!X13)","v":""},"Разрядность",{"$f":"IF(C5=D5,1,0)","v":0}]
[null,3,{"$f":"CONCATENATE(Кроссворд!S4,Кроссворд!S5,Кроссворд!S6,Кроссворд!S7,Кроссворд!S8,Кроссворд!S9,Кроссворд!S10)","v":""},"Принтер",0]
[null,4,{"$f":"CONCATENATE(Кроссворд!V4,Кроссворд!W4,Кроссворд!X4,Кроссворд!Y4,Кроссворд!Z4,Кроссворд!AA4)","v":""},"Сканер",0]
[null,5,{"$f":"CONCATENATE(Кроссворд!N5,Кроссворд!N6,Кроссворд!N7,Кроссворд!N8,Кроссворд!N9,Кроссворд!N10,Кроссворд!N11,Кроссворд!N12,Кроссворд!N13,Кроссворд!N14,Кроссворд!N15)","v":""},"Оперативная",1]
[null,6,{"$f":"CONCATENATE(Кроссворд!R7,Кроссворд!S7,Кроссворд!T7,Кроссворд!U7,Кроссворд!V7,Кроссворд!W7,Кроссворд!X7)","v":""},"Внешняя",0]
[null,7,{"$f":"CONCATENATE(Кроссворд!J10,Кроссворд!K10,Кроссворд!L10,Кроссворд!M10,Кроссворд!N10,Кроссворд!O10,Кроссворд!P10,Кроссворд!Q10,Кроссворд!R10,Кроссворд!S10,Кроссворд!T10)","v":""},"Архитектура",0]
[null,8,{"$f":"CONCATENATE(Кроссворд!V11,Кроссворд!W11,Кроссворд!X11,Кроссворд!Y11,Кроссворд!Z11,Кроссворд!AA11,Кроссворд!AB11,Кроссворд!AC11)","v":""},"Дисковод",0]
[null,9,{"$f":"CONCATENATE(Кроссворд!AC11,Кроссворд!AC12,Кроссворд!AC13,Кроссворд!AC14,Кроссворд!AC15,Кроссворд!AC16,Кроссворд!AC17)","v":""},"Дискета",0]
[null,10,{"$f":"CONCATENATE(Кроссворд!U16,Кроссворд!V16,Кроссворд!W16,Кроссворд!X16,Кроссворд!Y16,Кроссворд!Z16,Кроссворд!AA16,Кроссворд!AB16,Кроссворд!AC16,Кроссворд!AD16)","v":""},"Видеокарта",0]
[null,null,null,"Итого:",{"$f":"SUM(E4:E13)","v":2}]
[]
[]
[null,null,null,"Ваша оценка:",{"$f":"IF(E14>=9,5,IF(E14>=7,4,IF(E14>=5,3,2)))","v":2}]

{"sheet":"Итоговый","index":3,"n_rows":14,"n_cols":14,"rows_kept":14,"cut":false,"hidden":false,"merged":[[13,4,14,8],[13,10,14,11],[13,13,14,14],[12,4,12,8],[12,10,12,11],[12,13,12,14]]}
[]
[]
[]
[]
[]
[]
[]
[]
[]
[]
[]
[]
[null,null,null,null,"фамилия ученика",null,null,null,null,null,"класс",null,null,"оценка"]
[null,null,null,null,{"$f":"Титульный!H10","v":0},null,null,null,null,null,{"$f":"Титульный!H14","v":0},null,null,{"$f":"Проверка!E17","v":2}]